bitfinex/quotes_BTCUSD_20251114
["timestamp","ask_amount","ask_price","bid_price","bid_amount"]
[1763141321088,0.07892,96522.0,96512.0,0.05]
[1763141321496,0.10479654,96521.0,96512.0,0.05]
[1763141321731,0.07892,96522.0,96512.0,0.05]
[1763141321732,0.01613,96513.0,96512.0,0.051]
[1763141321919,0.01144,96530.0,96521.0,0.0045]
[1763141322146,0.01144,96558.0,96531.0,0.05]
[1763141322147,0.02305,96547.0,96531.0,0.05]
[1763141322348,0.10479654,96540.0,96531.0,0.05]
[1763141322582,0.01613,96532.0,96531.0,0.05]
[1763141322797,0.01613,96532.0,96527.0,0.05]
[1763141322933,0.06756,96531.0,96527.0,0.05]
[1763141323136,0.01613,96528.0,96527.0,0.05]
[1763141323336,0.01613,96528.0,96512.0,0.001]
[1763141323337,0.08369,96528.0,96521.0,0.05]
[1763141323554,0.10479654,96523.0,96521.0,0.05]
[1763141323755,0.01144,96522.0,96521.0,0.05]
[1763141323960,0.10479654,96523.0,96521.0,0.05]
[1763141324217,0.01613,96522.0,96521.0,0.05]
[1763141324650,0.06856,96528.0,96514.0,0.00475975]
[1763141324651,0.001,96528.0,96518.0,0.05]
[1763141324874,0.001,96528.0,96527.0,0.05]
[1763141325090,0.0676,96527.0,96526.0,0.05]
[1763141325298,0.0676,96527.0,96519.0,0.00025918]
[1763141325506,0.12784654,96540.0,96526.0,0.05]
[1763141325708,0.12784654,96540.0,96514.0,0.0045]
[1763141325709,0.02305,96554.0,96539.0,0.05]
[1763141325916,0.0676,96552.0,96540.0,0.00213182]
[1763141326102,0.10479654,96546.0,96545.0,0.05]
[1763141326548,0.01144,96558.0,96547.0,0.05]
[1763141326751,0.01144,96558.0,96541.0,0.00829]
[1763141326752,0.0676,96552.0,96550.0,0.05]
[1763141327173,0.0676,96552.0,96551.0,0.00158859]
[1763141327385,0.0676,96552.0,96551.0,0.05183247]
[1763141327595,0.0676,96552.0,96551.0,0.05158859]
[1763141328641,0.0686,96552.0,96551.0,0.05158859]
[1763141329735,0.0676,96552.0,96551.0,0.05158859]
[1763141330910,0.01144,96571.0,96570.0,0.05]
[1763141331086,0.06756,96571.0,96560.0,0.62616668]
[1763141331286,0.06756,96571.0,96570.0,0.0510768]
[1763141331510,0.02305,96586.0,96570.0,0.0510768]
[1763141331511,0.02305,96586.0,96572.0,0.05]
[1763141331852,0.06756,96578.0,96572.0,0.05]
[1763141333045,0.10479654,96577.0,96572.0,0.05]
[1763141333706,0.31052016,96613.0,96581.0,0.05]
[1763141333935,0.06756,96584.0,96581.0,0.05]
[1763141334053,0.02588447,96583.0,96581.0,0.05]
[1763141334260,0.06756,96584.0,96581.0,0.05]
[1763141334643,0.02305,96599.0,96591.0,0.05]
[1763141334851,0.06756,96592.0,96591.0,0.05]
[1763141336890,0.06756,96592.0,96583.0,0.01279]
[1763141337099,0.06856,96592.0,96591.0,0.05]
[1763141337308,0.06856,96592.0,96591.0,0.05051137]
[1763141337533,0.001,96592.0,96591.0,0.05051137]
[1763141337728,0.01144,96624.0,96591.0,0.05051137]
[1763141337729,0.06756,96602.0,96601.0,0.05]
[1763141339867,0.06856,96602.0,96601.0,0.05]
[1763141340303,0.06756,96602.0,96601.0,0.05]
[1763141341372,0.02487,96626.0,96601.0,0.05]
[1763141341567,0.01034661,96650.0,96619.0,0.05]
[1763141341568,0.08666052,96623.0,96619.0,0.05]
[1763141341793,0.01910052,96622.0,96619.0,0.05]
[1763141342428,0.02487,96637.0,96600.0,1.01337668]
[1763141342429,0.01144,96645.0,96620.0,0.2]
[1763141342619,0.04930797,96656.0,96648.0,0.05]
[1763141342620,0.04010347,96656.0,96648.0,0.05]
[1763141342833,0.02201048,96663.0,96654.0,0.05]
[1763141342834,0.01910594,96655.0,96654.0,0.05]
[1763141343036,0.08670594,96655.0,96654.0,0.05]
[1763141343456,0.0676,96655.0,96654.0,0.05]
[1763141343649,0.0002,96680.0,96650.0,0.2]
[1763141343650,0.02761347,96679.0,96650.0,0.2]
[1763141343870,0.10479654,96676.0,96672.0,0.04975401]
[1763141344076,0.0286419,96675.0,96669.0,0.04975401]
[1763141344282,0.0190946,96674.0,96669.0,0.04975401]
[1763141344483,0.0190946,96673.0,96669.0,0.04975401]
[1763141344702,0.0190946,96672.0,96669.0,0.04975401]
[1763141344937,0.0190946,96671.0,96669.0,0.04975401]
[1763141345096,0.0190946,96670.0,96669.0,0.04975401]
[1763141345418,0.0676,96678.0,96669.0,0.04975401]
[1763141345668,0.12385198,96677.0,96669.0,0.04975401]
[1763141345877,0.0676,96678.0,96669.0,0.04975401]
[1763141345878,0.01905544,96676.0,96669.0,0.04975401]
[1763141346085,0.0676,96678.0,96660.0,0.61337668]
[1763141346314,0.01905508,96677.0,96660.0,0.61337668]
[1763141346535,0.01905508,96677.0,96676.0,0.04975401]
[1763141346953,0.01905508,96677.0,96651.0,0.323]
[1763141346954,0.03571508,96677.0,96651.0,0.323]
[1763141347158,0.01905508,96676.0,96673.0,0.04975401]
[1763141347356,0.01905508,96675.0,96673.0,0.04975401]
[1763141347629,0.0676,96678.0,96673.0,0.04975401]
[1763141347842,0.01902972,96677.0,96673.0,0.04975401]
[1763141348049,0.0676,96678.0,96673.0,0.04975401]
[1763141348262,0.01902923,96677.0,96673.0,0.04975401]
[1763141348486,0.0676,96678.0,96673.0,0.04975401]
[1763141348719,0.01249,96674.0,96673.0,0.04975401]
[1763141350056,0.01349,96674.0,96673.0,0.04975401]
[1763141350233,0.001,96674.0,96673.0,0.04975401]
[1763141351341,0.001,96674.0,96673.0,0.14975401]
[1763141351980,0.001,96674.0,96673.0,0.47275401]
[1763141352191,0.0002,96680.0,96674.0,0.323]
[1763141352413,0.0002,96680.0,96679.0,0.04975401]
[1763141354512,0.03521068,96680.0,96679.0,0.04975401]
[1763141354823,0.03521068,96680.0,96673.0,0.1]
[1763141355014,0.01900068,96679.0,96673.0,0.1]
[1763141355764,0.01900068,96679.0,96678.0,0.04975401]
[1763141356959,0.08652068,96679.0,96678.0,0.04975401]
[1763141357137,0.06752,96679.0,96678.0,0.04975401]
[1763141357958,0.06852,96679.0,96678.0,0.04975401]
[1763141358565,0.06752,96679.0,96678.0,0.04975401]
[1763141359471,0.08654845,96679.0,96678.0,0.04975401]
[1763141361143,0.08654845,96679.0,96673.0,0.1]
[1763141361356,0.08353,96679.0,96678.0,0.04975401]
[1763141361567,0.10256738,96679.0,96678.0,0.04975401]
[1763141361781,0.10256738,96679.0,96673.0,0.1]
[1763141361782,0.01601,96674.0,96673.0,0.1]
[1763141361996,0.02837,96674.0,96673.0,0.1]
[1763141362229,0.04740738,96674.0,96673.0,0.1]
[1763141362445,0.01903738,96674.0,96673.0,0.14975401]
[1763141363088,0.03504738,96674.0,96673.0,0.14975401]
[1763141363292,0.01903738,96674.0,96673.0,0.14975401]
[1763141364156,0.03504738,96674.0,96673.0,0.14975401]
[1763141364332,0.01601,96674.0,96673.0,0.14975401]
[1763141364567,0.06752,96679.0,96673.0,0.14975401]
[1763141364767,0.06752,96679.0,96675.0,0.04975401]
[1763141365173,0.01601,96676.0,96675.0,0.04975401]
[1763141366477,0.06752,96679.0,96678.0,0.04975401]
[1763141368355,0.08662204,96679.0,96678.0,0.04975401]
[1763141368733,0.10363204,96679.0,96678.0,0.04975401]
[1763141369868,0.02010204,96679.0,96678.0,0.04975401]
[1763141370099,0.001,96679.0,96678.0,0.04975401]
[1763141370712,0.0002,96680.0,96679.0,0.04975401]
[1763141370911,0.01930836,96680.0,96679.0,0.04975401]
[1763141371771,0.02030836,96680.0,96679.0,0.04975401]
[1763141372936,0.02034441,96680.0,96679.0,0.04975401]
[1763141374544,0.0002,96680.0,96679.0,0.04975401]
[1763141375945,0.0002,96680.0,96679.0,0.09317275]
[1763141379586,0.0002,96680.0,96679.0,0.04975401]
[1763141384482,0.0002,96680.0,96679.0,0.56597275]
[1763141384708,0.0002,96680.0,96679.0,0.42617275]
[1763141386032,0.0002,96680.0,96679.0,0.82123175]
[1763141386237,0.0002,96680.0,96679.0,0.77611575]
[1763141387097,0.0002,96680.0,96679.0,0.77711575]
[1763141387512,0.0002,96680.0,96679.0,0.77611575]
[1763141387738,0.0002,96680.0,96679.0,0.73389975]
[1763141387945,0.0002,96680.0,96679.0,0.72289975]
[1763141388154,0.0002,96680.0,96679.0,0.68279575]
[1763141388368,0.0002,96680.0,96679.0,0.42717275]
[1763141388575,0.0002,96680.0,96679.0,0.49457275]
[1763141389321,0.01222,96706.0,96705.0,0.04975401]
[1763141390749,0.02752,96706.0,96705.0,0.04975401]
[1763141392813,0.01222,96719.0,96705.0,0.04975401]
[1763141393029,0.0248,96717.0,96710.0,0.04975401]
[1763141393230,0.02934967,96716.0,96710.0,0.04975401]
[1763141393430,0.01222,96711.0,96710.0,0.04975401]
[1763141394091,0.07958,96711.0,96710.0,0.04975401]
[1763141394315,0.09488,96711.0,96710.0,0.04975401]
[1763141394498,0.07958,96711.0,96710.0,0.04975401]
[1763141395659,0.06736,96711.0,96710.0,0.04975401]
[1763141396073,0.06836,96711.0,96710.0,0.04975401]
[1763141396481,0.001,96711.0,96710.0,0.04975401]
[1763141396659,0.06736,96711.0,96710.0,0.04975401]
[1763141396872,0.01222,96719.0,96718.0,0.04975401]
[1763141397021,0.07958,96719.0,96718.0,0.04975401]
[1763141397202,0.09488,96719.0,96718.0,0.04975401]
[1763141399077,0.09588,96719.0,96718.0,0.04975401]
[1763141400361,0.001,96719.0,96718.0,0.04975401]
[1763141400876,0.07978,96719.0,96718.0,0.04975401]
[1763141401079,0.09569,96719.0,96718.0,0.04975401]
[1763141401287,0.09569,96719.0,96711.0,0.04975401]
[1763141401666,0.09569,96719.0,96680.0,0.4003]
[1763141401667,0.13212654,96692.0,96685.0,0.04975401]
[1763141401871,0.13212654,96692.0,96680.0,0.0003]
[1763141401873,0.06736,96691.0,96680.0,0.0003]
[1763141402082,0.22277587,96681.0,96680.0,0.0003]
[1763141402278,0.01591,96681.0,96673.0,0.1]
[1763141402428,0.38880135,96690.0,96673.0,0.1]
[1763141402429,0.02733,96674.0,96673.0,0.1]
[1763141402634,0.09469,96674.0,96673.0,0.1]
[1763141402846,0.09469,96674.0,96620.0,0.29270715]
[1763141402847,0.10479654,96648.0,96617.0,0.07371157]
[1763141403013,0.10479654,96648.0,96630.0,0.36520135]
[1763141403014,0.00967,96645.0,96630.0,0.36520135]
[1763141403211,0.00967,96645.0,96620.0,0.56520135]
[1763141403212,0.03502,96644.0,96620.0,0.56520135]
[1763141403416,0.03502,96644.0,96616.0,0.00833]
[1763141403641,0.0236,96643.0,96620.0,0.36520135]
[1763141404095,0.0236,96643.0,96616.0,0.00833]
[1763141404297,0.20695367,96640.0,96616.0,0.00833]
[1763141404718,0.01142,96617.0,96610.0,0.36520135]
[1763141404966,0.0674,96616.0,96609.0,0.00833]
[1763141405183,0.0236,96639.0,96618.0,0.01649]
[1763141405378,0.0674,96638.0,96620.0,0.36520135]
[1763141405570,0.10479654,96633.0,96616.0,0.001]
[1763141405791,0.10479654,96633.0,96611.0,0.34778]
[1763141406154,0.10479654,96633.0,96611.0,0.323]
[1763141406743,0.0236,96632.0,96611.0,0.323]
[1763141406922,0.0236,96632.0,96611.0,0.324]
[1763141407562,0.0236,96632.0,96620.0,0.36520135]
[1763141408049,0.01591,96621.0,96611.0,0.324]
[1763141408196,0.0674,96620.0,96611.0,0.323]
[1763141408399,0.0674,96620.0,96610.0,0.36520135]
[1763141408599,0.0674,96620.0,96611.0,0.323]
[1763141410613,0.01228,96619.0,96611.0,0.323]
[1763141411231,0.01228,96619.0,96610.0,0.323]
[1763141411406,0.01228,96619.0,96609.0,0.37353135]
[1763141411837,0.01228,96619.0,96609.0,0.36520135]
[1763141412258,0.03493,96619.0,96601.0,0.0002422]
[1763141412470,0.37554689,96660.0,96620.0,0.2]
[1763141412471,0.03232,96645.0,96620.0,0.2]
[1763141412682,0.0674,96635.0,96634.0,0.36520135]
[1763141412918,0.0674,96635.0,96620.0,0.36520135]
[1763141413130,0.02265,96634.0,96620.0,0.36520135]
[1763141413364,0.0674,96635.0,96620.0,0.36520135]
[1763141413564,0.0674,96635.0,96625.0,0.36520135]
[1763141414204,0.01228,96626.0,96620.0,0.36520135]
[1763141414643,0.00967,96645.0,96620.0,0.36520135]
[1763141414644,0.00967,96645.0,96629.0,0.02471]
[1763141414850,0.0674,96643.0,96630.0,0.36520135]
[1763141415709,0.02265,96642.0,96630.0,0.36520135]
[1763141415929,0.0674,96641.0,96630.0,0.36520135]
[1763141416128,0.17219654,96641.0,96630.0,0.36520135]
[1763141416336,0.02265,96640.0,96630.0,0.36520135]
[1763141416544,0.0674,96639.0,96630.0,0.36520135]
[1763141416975,0.01546,96631.0,96620.0,0.81277575]
[1763141417188,0.01546,96631.0,96620.0,0.61277575]
[1763141417398,0.0674,96639.0,96611.0,0.323]
[1763141417399,0.02774,96621.0,96611.0,0.323]
[1763141417595,0.0674,96620.0,96611.0,0.323]
[1763141418056,0.0674,96620.0,96619.0,0.02471]
[1763141418481,0.0674,96620.0,96619.0,0.00833]
[1763141419117,0.0674,96620.0,96611.0,0.323]
[1763141419887,0.0674,96620.0,96612.0,0.00020958]
[1763141420089,0.0674,96620.0,96610.0,0.81277575]
[1763141420311,0.0674,96620.0,96610.0,0.61277575]
[1763141420639,0.01228,96629.0,96610.0,0.61277575]
[1763141420842,0.05912,96628.0,96611.0,0.01697]
[1763141421051,0.05912,96628.0,96618.0,0.61277575]
[1763141421469,0.0674,96627.0,96618.0,0.61277575]
[1763141421667,0.0674,96627.0,96617.0,0.61277575]
[1763141422056,0.323,96637.0,96626.0,0.01638]
[1763141422274,0.02265,96641.0,96625.0,0.00834]
[1763141422501,0.10479654,96640.0,96625.0,0.00834]
[1763141422708,0.02774,96626.0,96615.0,0.00834]
[1763141422900,0.02774,96626.0,96610.0,0.61277575]
[1763141422901,0.0674,96625.0,96610.0,0.61277575]
[1763141423165,0.02265,96624.0,96610.0,0.61277575]
[1763141423566,0.02265,96624.0,96601.0,0.0002422]
[1763141423567,0.02774,96611.0,96601.0,0.0002422]
[1763141423771,0.0674,96610.0,96601.0,0.0002422]
[1763141424389,0.09005,96610.0,96601.0,0.0002422]
[1763141424829,0.0674,96609.0,96601.0,0.0002422]
[1763141425040,0.0674,96608.0,96601.0,0.0172122]
[1763141425246,0.0674,96608.0,96601.0,0.0002422]
[1763141426077,0.01228,96613.0,96601.0,0.0002422]
[1763141426260,0.0674,96607.0,96601.0,0.0002422]
[1763141426475,0.0674,96607.0,96601.0,0.0012422]
[1763141427304,0.0674,96607.0,96601.0,0.0012422]
[1763141427689,0.0674,96607.0,96601.0,0.0002422]
[1763141428142,0.0674,96607.0,96601.0,0.0012422]
[1763141428143,0.01546,96602.0,96601.0,0.0012422]
[1763141428720,0.54549505,96602.0,96601.0,0.0012422]
[1763141428940,0.33846,96602.0,96601.0,0.0002422]
[1763141430854,0.57007588,96602.0,96601.0,0.0002422]
[1763141431111,0.323,96601.0,96580.0,0.0004]
[1763141431317,0.02878,96581.0,96580.0,0.0004]
[1763141431448,0.09622,96581.0,96580.0,0.0004]
[1763141431669,0.41922,96581.0,96580.0,0.0004]
[1763141431861,0.30330006,96581.0,96580.0,0.0004]
[1763141432058,0.30330006,96581.0,96580.0,0.00096529]
[1763141432998,0.30430006,96581.0,96580.0,0.00096529]
[1763141433415,0.53010151,96571.0,96570.0,0.0004]
[1763141433636,0.41922,96571.0,96570.0,0.0004]
[1763141434013,0.62632151,96571.0,96570.0,0.0004]
[1763141434407,0.35178,96571.0,96570.0,0.0004]
[1763141434599,0.001,96571.0,96570.0,0.05015401]
[1763141434804,0.08494,96571.0,96570.0,0.0004]
[1763141435055,0.08394,96571.0,96570.0,0.0004]
[1763141435395,0.08494,96571.0,96570.0,0.0004]
[1763141435812,0.08394,96571.0,96570.0,0.0004]
[1763141436402,0.08398,96571.0,96570.0,0.05015401]
[1763141436815,0.06748,96571.0,96570.0,0.05015401]
[1763141437028,0.02335,96590.0,96580.0,0.04975401]
[1763141437224,0.07976,96581.0,96580.0,0.04975401]
[1763141437446,0.09626,96581.0,96576.0,0.04975401]
[1763141438344,0.07976,96581.0,96570.0,0.61317575]
[1763141438556,0.06748,96581.0,96580.0,0.04975401]
[1763141444180,0.01228,96592.0,96586.0,0.04975401]
[1763141444387,0.0165,96587.0,96586.0,0.04975401]
[1763141444783,0.06744,96591.0,96579.0,0.61277575]
[1763141445012,0.08656314,96590.0,96589.0,0.04975401]
[1763141446433,0.08656314,96590.0,96589.0,0.05]
[1763141448084,0.06744,96590.0,96589.0,0.05]
[1763141450506,0.08658933,96590.0,96589.0,0.05]
[1763141450894,0.08658933,96590.0,96589.0,0.051]
[1763141451267,0.06744,96590.0,96589.0,0.051]
[1763141451459,0.06744,96590.0,96589.0,0.05]
[1763141452441,0.06744,96590.0,96589.0,0.051]
[1763141453436,0.08394,96590.0,96589.0,0.051]
[1763141453965,0.06744,96590.0,96589.0,0.05]
[1763141454609,0.323,96623.0,96589.0,0.05]
[1763141454610,0.01228,96605.0,96589.0,0.05]
[1763141454795,0.08662032,96604.0,96603.0,0.05]
[1763141455006,0.10312032,96604.0,96603.0,0.05]
[1763141455194,0.10312032,96604.0,96598.0,0.05]
[1763141455427,0.10479654,96602.0,96598.0,0.05]
[1763141455599,0.0165,96599.0,96592.0,0.05]
[1763141455748,0.0165,96593.0,96592.0,0.05]
[1763141459614,0.02335,96600.0,96592.0,0.05]
[1763141459985,0.02335,96600.0,96599.0,0.05]
[1763141460511,0.02284,96612.0,96590.0,0.61277575]
[1763141460718,0.06744,96600.0,96599.0,0.05]
[1763141461288,0.06744,96600.0,96592.0,0.01721]
[1763141461502,0.06744,96600.0,96599.0,0.06617]
[1763141461726,0.02761347,96631.0,96592.0,0.01721]
[1763141461727,0.01235,96634.0,96603.0,0.01]
[1763141461940,0.01235,96634.0,96633.0,0.05]
[1763141462141,0.10479654,96623.0,96600.0,0.61277575]
[1763141462345,0.01371374,96622.0,96600.0,0.81277575]
[1763141462553,0.06744,96621.0,96610.0,0.61277575]
[1763141462766,0.06744,96621.0,96620.0,0.05]
[1763141463434,0.08303,96621.0,96620.0,0.05]
[1763141464050,0.01235,96634.0,96600.0,0.2]
[1763141464051,0.01235,96634.0,96618.0,0.00834]
[1763141464249,0.01235,96634.0,96633.0,0.05]
[1763141464473,0.02284,96645.0,96633.0,0.05]
[1763141464601,0.02284,96645.0,96640.0,0.05]
[1763141464805,0.01235,96655.0,96630.0,0.81277575]
[1763141465009,0.01235,96655.0,96653.0,0.05]
[1763141465208,0.06744,96654.0,96653.0,0.05]
[1763141465476,0.08303,96654.0,96653.0,0.05]
[1763141469029,0.06744,96654.0,96653.0,0.05]
[1763141469777,0.08272,96654.0,96653.0,0.05]
[1763141469984,0.06744,96654.0,96653.0,0.05]
[1763141470200,0.06744,96654.0,96647.0,0.00888]
[1763141470404,0.06744,96654.0,96653.0,0.05]
[1763141470888,0.08272,96654.0,96640.0,0.61277575]
[1763141471101,0.12767654,96653.0,96647.0,0.05]
[1763141471511,0.01528,96648.0,96647.0,0.05]
[1763141472130,0.01528,96648.0,96643.0,0.05]
[1763141472345,0.01528,96644.0,96643.0,0.05]
[1763141472539,0.08268,96644.0,96643.0,0.05]
[1763141473944,0.01318907,96652.0,96643.0,0.05]
[1763141474143,0.02586251,96665.0,96663.0,0.05]
[1763141474315,0.11614278,96664.0,96663.0,0.05]
[1763141474516,0.13142278,96664.0,96660.0,0.05]
[1763141474731,0.10479654,96662.0,96643.0,0.00888]
[1763141474936,0.02162324,96661.0,96655.0,0.05]
[1763141475129,0.01239787,96660.0,96640.0,0.61277575]
[1763141475349,0.01171,96644.0,96643.0,0.05]
[1763141475551,0.07911,96644.0,96643.0,0.05]
[1763141476168,0.09439,96644.0,96643.0,0.05]
[1763141476699,0.09439,96644.0,96640.0,0.001]
[1763141476930,0.01528,96641.0,96632.0,0.1498]
[1763141477130,0.01528,96641.0,96637.0,0.05]
[1763141477286,0.02288,96640.0,96610.0,0.4]
[1763141477489,0.0674,96639.0,96638.0,0.05]
[1763141477867,0.08268,96639.0,96632.0,0.05]
[1763141478069,0.08268,96639.0,96618.0,0.05]
[1763141478070,0.01171,96619.0,96618.0,0.05]
[1763141478439,0.07911,96619.0,96618.0,0.05]
[1763141478996,0.07911,96619.0,96610.0,0.21721]
[1763141478997,0.0674,96619.0,96610.0,0.21721]
[1763141479209,0.0674,96619.0,96618.0,0.06648]
[1763141479603,0.0674,96619.0,96618.0,0.05]
[1763141479767,0.01171,96628.0,96627.0,0.05]
[1763141479988,0.09439,96628.0,96627.0,0.05]
[1763141480193,0.0674,96628.0,96627.0,0.05]
[1763141480391,0.01171,96636.0,96626.0,0.00834]
[1763141480596,0.02288,96645.0,96627.0,0.05]
[1763141480805,0.0674,96643.0,96634.0,0.36567808]
[1763141480995,0.0674,96643.0,96642.0,0.05]
[1763141481411,0.01171,96650.0,96633.0,0.36567808]
[1763141481603,0.41269604,96690.0,96630.0,0.76567808]
[1763141481604,0.02288,96666.0,96648.0,0.05]
[1763141481814,0.02288,96659.0,96655.0,0.05]
[1763141482013,0.02288,96659.0,96654.0,0.05]
[1763141482014,0.0674,96655.0,96654.0,0.05]
[1763141482553,0.08268,96655.0,96654.0,0.05]
[1763141483349,0.10854519,96655.0,96640.0,0.36567808]
[1763141483640,0.10854519,96655.0,96645.0,0.05]
[1763141483641,0.01528,96646.0,96645.0,0.05]
[1763141484835,0.0674,96655.0,96654.0,0.05]
[1763141485190,0.08268,96655.0,96652.0,0.05]
[1763141485407,0.10479654,96654.0,96652.0,0.05]
[1763141485612,0.01528,96653.0,96652.0,0.05]
[1763141487521,0.02288,96661.0,96640.0,0.56567808]
[1763141487725,0.323,96662.0,96655.0,0.05]
[1763141487921,0.0674,96655.0,96651.0,0.05]
[1763141488677,0.01528,96652.0,96651.0,0.05]
[1763141490989,0.01528,96652.0,96630.0,0.56567808]
[1763141491211,0.02279,96651.0,96645.0,0.05]
[1763141491762,0.0151,96646.0,96645.0,0.05]
[1763141491983,0.0825,96646.0,96645.0,0.05]
[1763141492201,0.0825,96646.0,96620.0,0.36567808]
[1763141492418,0.10479654,96637.0,96632.0,0.05]
[1763141492594,0.0674,96636.0,96627.0,0.05]
[1763141492796,0.07958,96636.0,96627.0,0.05]
[1763141493010,0.07958,96636.0,96633.0,0.05]
[1763141493204,0.0151,96634.0,96633.0,0.05]
[1763141494573,0.07958,96636.0,96620.0,0.36567808]
[1763141494798,0.07958,96636.0,96635.0,0.05]
[1763141494973,0.02279,96657.0,96646.0,0.05]
[1763141495169,0.0151,96647.0,96646.0,0.05]
[1763141495369,0.0151,96647.0,96638.0,0.05]
[1763141495587,0.10479654,96645.0,96638.0,0.05]
[1763141495838,0.02728,96639.0,96638.0,0.05]
[1763141497144,0.0674,96644.0,96638.0,0.05]
[1763141497364,0.0674,96644.0,96629.0,0.36567808]
[1763141497365,0.0674,96644.0,96642.0,0.05]
[1763141497727,0.0151,96643.0,96642.0,0.05]
[1763141498152,0.0151,96643.0,96639.0,0.05]
[1763141498345,0.02279,96642.0,96639.0,0.05]
[1763141498547,0.0151,96640.0,96639.0,0.05]
[1763141500597,0.0151,96640.0,96635.0,0.05]
[1763141500798,0.10479654,96638.0,96635.0,0.05]
[1763141500995,0.0151,96636.0,96635.0,0.05]
[1763141502812,0.02728,96636.0,96635.0,0.05]
[1763141503015,0.01218,96636.0,96635.0,0.05]
[1763141503668,0.02728,96636.0,96635.0,0.05]
[1763141505226,0.02728,96636.0,96620.0,0.36567808]
[1763141505426,0.02728,96636.0,96635.0,0.05]
[1763141506043,0.02728,96636.0,96631.0,0.05]
[1763141506280,0.12758654,96635.0,96631.0,0.05]
[1763141506482,0.0151,96632.0,96631.0,0.05]
[1763141507300,0.0151,96632.0,96610.0,0.36567808]
[1763141507624,0.0151,96632.0,96600.0,0.4]
[1763141507625,0.10479654,96626.0,96622.0,0.05]
[1763141507952,0.01218,96623.0,96622.0,0.05]
[1763141508589,0.01218,96636.0,96620.0,0.2]
[1763141508797,0.03497,96642.0,96641.0,0.05]
[1763141508798,0.01218,96642.0,96641.0,0.05]
[1763141508969,0.07958,96642.0,96641.0,0.05]
[1763141509402,0.01218,96642.0,96641.0,0.05]
[1763141509608,0.07958,96642.0,96641.0,0.05]
[1763141510516,0.09468,96642.0,96630.0,0.36567808]
[1763141510667,0.11747,96642.0,96641.0,0.05]
[1763141511663,0.11747,96642.0,96620.0,0.36567808]
[1763141511859,0.0151,96631.0,96630.0,0.05]
[1763141512077,0.0825,96631.0,96620.0,0.36567808]
[1763141512279,0.10529,96631.0,96628.0,0.05]
[1763141512696,0.0151,96629.0,96628.0,0.05]
[1763141512894,0.0151,96629.0,96615.0,0.00834]
[1763141513116,0.03789,96629.0,96624.0,0.05]
[1763141513664,0.0151,96625.0,96624.0,0.05]
[1763141515484,0.0674,96631.0,96630.0,0.05]
[1763141515850,0.0825,96631.0,96630.0,0.05]
[1763141516258,0.0151,96631.0,96630.0,0.05]
[1763141516468,0.0674,96631.0,96630.0,0.05]
[1763141516668,0.0674,96631.0,96620.0,0.36567808]
[1763141516867,0.0674,96631.0,96630.0,0.05]
[1763141517078,0.02279,96644.0,96638.0,0.05]
[1763141517277,0.17219654,96641.0,96640.0,0.05]
[1763141517742,0.18729654,96641.0,96640.0,0.05]
[1763141517940,0.21316547,96641.0,96640.0,0.05]
[1763141518368,0.21316547,96641.0,96630.0,0.36567808]
[1763141518590,0.18729654,96641.0,96640.0,0.05]
[1763141518779,0.18729654,96641.0,96636.0,0.05]
[1763141519172,0.0151,96637.0,96636.0,0.05]
[1763141520773,0.01961047,96640.0,96636.0,0.05]
[1763141520976,0.02378,96652.0,96641.0,0.05]
[1763141521232,0.03757492,96656.0,96641.0,0.05]
[1763141521233,0.07958,96642.0,96641.0,0.05]
[1763141521379,0.09459,96642.0,96641.0,0.05]
[1763141521597,0.09459,96642.0,96618.0,0.1498]
[1763141521792,0.02639,96619.0,96610.0,0.05]
[1763141521993,0.02639,96619.0,96602.0,0.07371157]
[1763141521994,0.01138,96603.0,96602.0,0.05]
[1763141522189,0.09379,96603.0,96602.0,0.05]
[1763141522844,0.09379,96603.0,96590.0,0.07371157]
[1763141523049,0.09379,96603.0,96572.0,0.02784541]
[1763141523050,0.01501,96591.0,96589.0,0.05]
[1763141523272,0.10479654,96593.0,96572.0,0.10334256]
[1763141523273,0.09439065,96590.0,96579.0,0.07371157]
[1763141523495,0.01501,96580.0,96578.0,0.05]
[1763141523703,0.0674,96579.0,96572.0,0.01063541]
[1763141523957,0.01138,96588.0,96579.0,0.05]
[1763141524156,0.0674,96587.0,96578.0,0.36567808]
[1763141524347,0.0674,96587.0,96586.0,0.05]
[1763141524551,0.01138,96608.0,96586.0,0.05]
[1763141524552,0.323,96607.0,96586.0,0.05]
[1763141524784,0.02378,96606.0,96593.0,0.05]
[1763141524986,0.02378,96606.0,96580.0,0.2]
[1763141524987,0.01138,96608.0,96595.0,0.0245]
[1763141525137,0.01138,96608.0,96607.0,0.05]
[1763141525353,0.07878,96608.0,96607.0,0.05]
[1763141525661,0.07878,96608.0,96572.0,0.10991715]
[1763141525662,0.01501,96596.0,96593.0,0.05]
[1763141525897,0.01501,96594.0,96593.0,0.05]
[1763141526847,0.01501,96594.0,96585.0,0.05]
[1763141527060,0.10479654,96590.0,96585.0,0.05]
[1763141527190,0.01501,96586.0,96585.0,0.05]
[1763141527377,0.08241,96586.0,96585.0,0.05]
[1763141527783,0.08241,96586.0,96581.0,0.05]
[1763141527986,0.03516,96585.0,96581.0,0.05]
[1763141528218,0.01501,96582.0,96578.0,0.05]
[1763141528424,0.03516,96585.0,96578.0,0.05]
[1763141528425,0.01501,96579.0,96578.0,0.05]
[1763141529230,0.0674,96579.0,96578.0,0.05]
[1763141529672,0.08278,96579.0,96570.0,0.0004]
[1763141529873,0.01538,96572.0,96570.0,0.0504]